Cogmind - Beta 12 @@@ ROGUE MODE // 2024.02.09 @ 05:24:23 Player: Six of Ten Result: Destroyed by S-27 Virus with Autogun Performance ------------- Evolutions (5) 2500 Regions Visited (8) 1600 Robots Destroyed (16) 80 Value Destroyed (399) 399 Prototype IDs (3) 60 Alien Tech Used (0) 0 Bonus (500) 500 TOTAL SCORE: 5139 Bonus ------- Entered DSFs 500 Cogmind --------- Core Integrity 0/1000 Matter 55/300 Energy 100/100 System Corruption 0% Temperature Cool (0) Movement Core (50) Location -5/Factory Parts ------- > --- POWER (2) -------- (None) > --- PROPULSION (7) --- (None) > --- UTILITY (6) ------ Enhanced Optical Array > --- WEAPON (2) ------- (None) > --- INVENTORY (5) ---- Hover Unit Point Defense System Point Defense System High-powered Shock Rifle Gatling Laser Peak State ------------ > --- POWER ------------ Improved Deuterium Engine > --- PROPULSION ------- Flight Unit Xenon Bombardment Thruster Xenon Bombardment Thruster Xenon Bombardment Thruster Xenon Bombardment Thruster Xenon Bombardment Thruster > --- UTILITY ---------- Small Storage Unit Improved Trap Scanner Enhanced Optical Array Improved Sensor Array Improved Signal Interpreter Improved Transmission Jammer > --- WEAPON ----------- Gauss Rifle KE Penetrator > --- INVENTORY -------- Hover Unit Improved Flight Unit Improved Transmission Jammer Hardened Light Armor Plating Point Defense System Point Defense System High-powered Shock Rifle Gatling Laser [Rating: 61] Favorites ----------- Power Improved Ion Engine Engine Improved Ion Engine Propulsion Xenon Bombardment Thruster Wheel Wheel Hover Unit Hover Unit Flight Unit Xenon Bombardment Thruster Utility Small Storage Unit Device Sensor Array Storage Small Storage Unit Processor Enhanced Optical Array Protection Hardened Light Armor Plating Weapon Assault Rifle Energy Gun Gatling Laser Ballistic Gun Assault Rifle Build | -11 -10 -9 -9 -8 -7 -6 -6 -5 ------- Run | Jun Mat Mat Min Mat Fac Fac DSF Fac Slots Evolved 10 | . . 2 . 2 2 2 . 2 Power 1 | . . . . . . . . 1 Propulsion 5 | . . . . 2 . 2 . 1 Utility 4 | . . 2 . . 2 . . . Weapon . | . . . . . . . . . Parts Attached 46 | 6 3 9 . 6 6 . 13 3 Power 4 | 1 . 2 . . . . 1 . Engine 4 | 1 . 2 . . . . 1 . Core . | . . . . . . . . . Reactor . | . . . . . . . . . Propulsion 19 | 2 . 2 . 4 4 . 6 1 Treads . | . . . . . . . . . Leg . | . . . . . . . . . Wheel 3 | 2 . 1 . . . . . . Hover 4 | . . 1 . . 3 . . . Flight 12 | . . . . 4 1 . 6 1 Utility 15 | 1 2 4 . 2 2 . 4 . Device 8 | . 2 2 . 1 1 . 2 . Storage 1 | 1 . . . . . . . . Processor 3 | . . . . 1 . . 2 . Hackware . | . . . . . . . . . Protection 3 | . . 2 . . 1 . . . Artifact . | . . . . . . . . . Weapon 8 | 2 1 1 . . . . 2 2 Energy Gun 2 | . . . . . . . 1 1 Energy Cannon . | . . . . . . . . . Ballistic Gun 6 | 2 1 1 . . . . 1 1 Ballistic Cannon . | . . . . . . . . . Launcher . | . . . . . . . . . Special Weapon . | . . . . . . . . . Impact Weapon . | . . . . . . . . . Slashing Weapon . | . . . . . . . . . Piercing Weapon . | . . . . . . . . . Special Melee Weapon . | . . . . . . . . . Unidentified Prototypes 1 | . . . . 1 . . . . Parts Lost 18 | . . 4 . 2 . . 5 7 Power 4 | . . 2 . . . . 1 1 Propulsion 6 | . . . . . . . 3 3 Utility 5 | . . 1 . . . . 1 3 Weapon 3 | . . 1 . 2 . . . . Highest Loss Streak 6 | . . 2 . 2 . . 5 6 To Critical Strikes . | . . . . . . . . . Average Slot Usage (%) 90 | . 98 98 100 85 67 60 86 77 Engine 8 | . 14 10 11 9 7 6 5 4 Wheel 13 | . 28 22 22 . . . . . Hover 1 | . . . . . 17 20 5 . Flight 12 | . . . . 36 12 6 30 30 Device 13 | . 12 13 11 11 12 13 17 14 Storage 9 | . 14 11 11 9 7 6 6 4 Processor 4 | . . . . 7 7 6 12 10 Protection 7 | . . 18 22 . 1 . . . Ballistic Gun 16 | . 28 21 22 12 . . 3 6 Naked Turns . | . . . . . . . . . Heaviest Build 29 | 11 13 25 25 17 17 17 28 29 Greatest Support 34 | 26 26 26 26 19 19 18 34 33 Greatest Overweight (x) 2 | . . . . . . . 2 . Average Overweight (x) . | . . . . . . . . . Largest Inventory Capacity 8 | 8 8 8 8 8 8 8 8 8 Average Capacity 7 | 6 8 8 8 8 8 8 8 7 Most Carried 8 | 6 8 8 8 8 8 6 8 8 Average Carried 6 | 3 6 7 8 7 7 6 5 6 Final Capacity 8 | 8 8 8 8 8 8 8 8 5 Final Carried 8 | 4 8 8 8 8 6 6 4 5 Class Distribution -------------------- 62% | Mutant 17% | Skirmisher 9% | Sprinter 5% | Scout 4% | Scavenger-Mutant Dominant Class ---------------- Mutant | -10/Materials Mutant | -9/Materials Mutant | -9/Mines Sprinter | -8/Materials Scavenger-Mutant | -7/Factory Scavenger-Mutant | -6/Factory Skirmisher | -6/DSF Skirmisher | -5/Factory Resources | -11 -10 -9 -9 -8 -7 -6 -6 -5 ----------- Run | Jun Mat Mat Min Mat Fac Fac DSF Fac Matter Collected 598 | 260 98 229 . . . . 11 . Remotely . | . . . . . . . . . Salvage Created 583 | . 162 364 . 57 . . . . Parts 30 | . 4 20 . 6 . . . . Haulers Intercepted . | . . . . . . . . . Recyclers Shooed . | . . . . . . . . . Parts Field Recycled . | . . . . . . . . . Retrieved Matter . | . . . . . . . . . Parts Self-Destructed . | . . . . . . . . . Prevented . | . . . . . . . . . Kills | -11 -10 -9 -9 -8 -7 -6 -6 -5 ------- Run | Jun Mat Mat Min Mat Fac Fac DSF Fac Combat Hostiles Destroyed 12 | . 3 8 . 1 . . . . Guns 12 | . 3 8 . 1 . . . . Classes Destroyed 6 | . 2 4 . . . . . . Recycler 1 | . . 1 . . . . . . Operator 1 | . 1 . . . . . . . Watcher 2 | . . 2 . . . . . . Swarmer 4 | . . 4 . . . . . . Grunt 5 | . 3 2 . . . . . . Sentry 3 | . . 2 . 1 . . . . Best Kill Streak 6 | . 2 6 . 1 . . . . Combat Bots Only 5 | . 2 5 . 1 . . . . Max Kills in Single Turn 1 | . 1 1 . 1 . . . . Gunslinging . | . . . . . . . . . Exploded . | . . . . . . . . . Melee . | . . . . . . . . . Uniques/NPCs Destroyed . | . . . . . . . . . Combat | -11 -10 -9 -9 -8 -7 -6 -6 -5 -------- Run | Jun Mat Mat Min Mat Fac Fac DSF Fac Damage Taken 2900 | . 114 461 . 419 . . 422 1484 Core 1325 | . 31 79 . 106 . . 107 1002 Absorbed by Shields . | . . . . . . . . . Core Remaining (%) 89 | 100 87 . 80 80 100 . 87 . Volleys Fired 53 | . 12 30 . 5 . . . 6 Largest 2 | . 2 2 . 2 . . . 2 Hottest 108 | . 40 40 . 40 . . . 108 Shots Fired 97 | . 24 53 . 10 . . . 10 Gun 97 | . 24 53 . 10 . . . 10 Cannon . | . . . . . . . . . Launcher . | . . . . . . . . . Special . | . . . . . . . . . Kinetic 93 | . 24 53 . 10 . . . 6 Thermal 4 | . . . . . . . . 4 Explosive . | . . . . . . . . . Electromagnetic . | . . . . . . . . . Robot Hit Streak 8 | . 6 8 . 7 . . . 4 Robot Miss Streak 4 | . 1 4 . 2 . . . 4 Penetration Max . | . . . . . . . . . Secondary Targets 1 | . . 1 . . . . . . Max Gunslinging Chain 1 | . . 1 . . . . . . Shots Hit Robots 63 | . 17 34 . 7 . . . 5 Core Hits 26 | . 7 15 . 3 . . . 1 Critical Kills . | . . . . . . . . . Critical Parts Destroyed . | . . . . . . . . . Critical Strikes . | . . . . . . . . . Melee Attacks . | . . . . . . . . . Impact . | . . . . . . . . . Slashing . | . . . . . . . . . Piercing . | . . . . . . . . . Sneak Attacks . | . . . . . . . . . Combat Hostiles . | . . . . . . . . . Follow-up Attacks . | . . . . . . . . . Damage Inflicted 800 | . 198 437 . 80 . . . 85 Guns 798 | . 198 437 . 80 . . . 83 Cannons . | . . . . . . . . . Explosions . | . . . . . . . . . Melee . | . . . . . . . . . Ramming 2 | . . . . . . . . 2 Kinetic 756 | . 198 437 . 80 . . . 41 Thermal 42 | . . . . . . . . 42 Explosive . | . . . . . . . . . Electromagnetic . | . . . . . . . . . Impact . | . . . . . . . . . Slashing . | . . . . . . . . . Piercing . | . . . . . . . . . Highest Corruption 2 | . . . . 2 . . . . Average Corruption 2 | . . . . 2 . . . . Corruption Purged . | . . . . . . . . . Corruption Blocked . | . . . . . . . . . Effects 1 | . . . . 1 . . . . Parts Rejected 1 | . . . . 1 . . . . Overload Shots . | . . . . . . . . . Overflow Damage . | . . . . . . . . . Projectiles . | . . . . . . . . . Explosions . | . . . . . . . . . Melee . | . . . . . . . . . Knockbacks . | . . . . . . . . . Impact . | . . . . . . . . . Kinetic . | . . . . . . . . . Secondary . | . . . . . . . . . Self-Inflicted Damage . | . . . . . . . . . Shots . | . . . . . . . . . Rammed 2 | . . . . . . . . 2 Targets Rammed 2 | . . . . . . . . 2 Kicked . | . . . . . . . . . Crushed . | . . . . . . . . . Highest Temperature 78 | . 6 5 . 27 . . . 78 Average Temperature 24 | . 5 2 . 12 . . . 39 Received Heat Transfer 372 | . 66 99 . 189 . . . 18 Siege Activations . | . . . . . . . . . Robots Corrupted . | . . . . . . . . . Combat Hostiles . | . . . . . . . . . Parts Fried . | . . . . . . . . . Impact Corruptions . | . . . . . . . . . Robots Melted . | . . . . . . . . . Combat Hostiles . | . . . . . . . . . Parts Melted . | . . . . . . . . . Heat Transferred 100 | . . . . . . . . 100 Parts Sabotaged . | . . . . . . . . . Parts Stolen . | . . . . . . . . . Parts Stripped . | . . . . . . . . . Power Chain Reactions . | . . . . . . . . . Missiles Intercepted . | . . . . . . . . . Alert | -11 -10 -9 -9 -8 -7 -6 -6 -5 ------- Run | Jun Mat Mat Min Mat Fac Fac DSF Fac Peak Influence 539 | . 128 266 56 539 245 119 83 62 Initial 245 | . . 53 56 21 245 119 83 32 Average 113 | . 49 172 56 205 245 119 57 50 Maximum Alert Level 2 | . . 1 . 2 1 . . . Low Security (%) 77 | 100 100 57 100 53 . 100 100 100 Level 1 21 | . . 42 . 31 100 . . . Level 2 1 | . . . . 14 . . . . Level 3 . | . . . . . . . . . Level 4 . | . . . . . . . . . Level 5 . | . . . . . . . . . High Security . | . . . . . . . . . Max Security . | . . . . . . . . . Squads Dispatched 5 | . 1 1 . 1 . . . 2 Investigation . | . . . . . . . . . Extermination . | . . . . . . . . . Reinforcement 5 | . 1 1 . 1 . . . 2 Assault . | . . . . . . . . . Garrison . | . . . . . . . . . Intercept . | . . . . . . . . . Searches Triggered . | . . . . . . . . . Construction Impeded . | . . . . . . . . . Haulers Reinforced . | . . . . . . . . . Active Scanning Responses . | . . . . . . . . . Cargo Convoy Interrupts . | . . . . . . . . . Stealth | -11 -10 -9 -9 -8 -7 -6 -6 -5 --------- Run | Jun Mat Mat Min Mat Fac Fac DSF Fac Distress Signals 4 | . . 1 . 2 . . . 1 Communications Jammed 1 | . . . . . . . . 1 Distress Signals 1 | . . . . . . . . 1 Times Spotted 91 | . 6 22 . 41 . . 4 18 Peak Tracking Total 17 | . 2 8 . 17 . . 2 12 Tactical Retreats 12 | . 1 3 . 5 . . 2 1 Traps | -11 -10 -9 -9 -8 -7 -6 -6 -5 ------- Run | Jun Mat Mat Min Mat Fac Fac DSF Fac Traps Triggered 2 | . . . . 1 . . 1 . Indirectly . | . . . . . . . . . Trap Hack Attempts . | . . . . . . . . . Triggered . | . . . . . . . . . Disarmed . | . . . . . . . . . Reprogrammed . | . . . . . . . . . Reused . | . . . . . . . . . Traps Extracted . | . . . . . . . . . Installed . | . . . . . . . . . Triggered . | . . . . . . . . . Machines | -11 -10 -9 -9 -8 -7 -6 -6 -5 ---------- Run | Jun Mat Mat Min Mat Fac Fac DSF Fac Machines Disabled . | . . . . . . . . . Max in Single Turn . | . . . . . . . . . Machines Repaired . | . . . . . . . . . Machines Sabotaged . | . . . . . . . . . Overloaded Fab Kills . | . . . . . . . . . Hacking | -11 -10 -9 -9 -8 -7 -6 -6 -5 --------- Run | Jun Mat Mat Min Mat Fac Fac DSF Fac Machines Accessed 13 | . 2 4 . 4 . 1 . 2 Terminals 13 | . 2 4 . 4 . 1 . 2 Fabricators . | . . . . . . . . . Repair Stations . | . . . . . . . . . Recycling Units . | . . . . . . . . . Scanalyzers . | . . . . . . . . . Garrison Access . | . . . . . . . . . Total Hacks 33 | . 5 10 . 11 . 3 . 4 Successful 11 | . 1 5 . 4 . 1 . . Failed 22 | . 4 5 . 7 . 2 . 4 Catastrophic 7 | . . 4 . 2 . . . 1 Database Lockouts . | . . . . . . . . . Manual 18 | . 1 6 . 7 . . . 4 Terminals 33 | . 5 10 . 11 . 3 . 4 Fabricators . | . . . . . . . . . Repair Stations . | . . . . . . . . . Recycling Units . | . . . . . . . . . Scanalyzers . | . . . . . . . . . Garrison Access . | . . . . . . . . . Terminal Hacks 11 | . 1 5 . 4 . 1 . . Record 4 | . . 3 . 1 . . . . Prototype ID Bank 1 | . . 1 . . . . . . Open DSF 1 | . . . . . . 1 . . Branch Access Points 2 | . . 1 . 1 . . . . Recall Investigation 1 | . 1 . . . . . . . Zone Layout 2 | . . . . 2 . . . . Fabricator Hacks . | . . . . . . . . . Repair Station Hacks . | . . . . . . . . . Recycling Unit Hacks . | . . . . . . . . . Scanalyzer . | . . . . . . . . . Garrison Access Hacks . | . . . . . . . . . Unauthorized Hacks . | . . . . . . . . . Terminals . | . . . . . . . . . Fabricators . | . . . . . . . . . Repair Stations . | . . . . . . . . . Recycling Units . | . . . . . . . . . Scanalyzers . | . . . . . . . . . Garrison Access . | . . . . . . . . . Data Cores Recovered . | . . . . . . . . . Used . | . . . . . . . . . Hacking Detections 13 | . 2 4 . 4 . 1 . 2 Full Trace Events . | . . . . . . . . . Feedback Events . | . . . . . . . . . Feedback Blocked . | . . . . . . . . . Robot Schematics Acquired . | . . . . . . . . . Robots Built . | . . . . . . . . . Authchips . | . . . . . . . . . Time . | . . . . . . . . . Total Robot Build Rating . | . . . . . . . . . Part Schematics Acquired . | . . . . . . . . . Parts Built . | . . . . . . . . . Authchips . | . . . . . . . . . Time . | . . . . . . . . . Total Part Build Rating . | . . . . . . . . . Parts Repaired . | . . . . . . . . . Time . | . . . . . . . . . Parts Recycled . | . . . . . . . . . Recycled Matter . | . . . . . . . . . Retrieved Matter . | . . . . . . . . . Retrieved Components . | . . . . . . . . . Parts Scanalyzed . | . . . . . . . . . Part Schematics Acquired . | . . . . . . . . . Parts Damaged . | . . . . . . . . . Bothacking | -11 -10 -9 -9 -8 -7 -6 -6 -5 ------------ Run | Jun Mat Mat Min Mat Fac Fac DSF Fac Used RIF Installer . | . . . . . . . . . Robots Hacked . | . . . . . . . . . Non-combat . | . . . . . . . . . Combat . | . . . . . . . . . Robot Hacks Applied . | . . . . . . . . . Relay Couplers Released . | . . . . . . . . . Fabnet Peak Effective % . | . . . . . . . . . Robots Rewired . | . . . . . . . . . Allies Hacked . | . . . . . . . . . Hacks Repelled . | . . . . . . . . . Allies | -11 -10 -9 -9 -8 -7 -6 -6 -5 -------- Run | Jun Mat Mat Min Mat Fac Fac DSF Fac Total Allies . | . . . . . . . . . Largest Group . | . . . . . . . . . Highest-Rated Group . | . . . . . . . . . Highest-Rated Ally . | . . . . . . . . . Total Orders . | . . . . . . . . . Ally Attacks . | . . . . . . . . . Total Damage . | . . . . . . . . . Kills . | . . . . . . . . . Allies Corrupted . | . . . . . . . . . Allies Melted . | . . . . . . . . . Intel | -11 -10 -9 -9 -8 -7 -6 -6 -5 ------- Run | Jun Mat Mat Min Mat Fac Fac DSF Fac Robot Analysis Total . | . . . . . . . . . Derelict Logs Recovered . | . . . . . . . . . Drone Launches . | . . . . . . . . . Drone Recoveries . | . . . . . . . . . Exploration | -11 -10 -9 -9 -8 -7 -6 -6 -5 ------------- Run | Jun Mat Mat Min Mat Fac Fac DSF Fac Turns Passed 1724 | 82 263 603 52 155 68 8 120 373 Spaces Moved 1723 | 77 215 289 57 405 111 15 112 442 Core 72 | 8 . . . . . . 5 59 Treads . | . . . . . . . . . Legs . | . . . . . . . . . Wheels 630 | 69 215 289 57 . . . . . Hover 120 | . . . . . 87 15 18 . Flight 901 | . . . . 405 24 . 89 383 Fastest Speed 25 | 50 90 90 90 31 31 52 25 25 Average Speed 54 | 85 90 90 90 31 47 52 43 31 Slowest Speed 150 | 90 90 90 90 31 52 52 150 50 Overloaded Moves . | . . . . . . . . . Propulsion Burnouts . | . . . . . . . . . Robots Hopped 23 | . . . . 19 . . . 4 Cave-ins Triggered . | . . . . . . . . . Exploration Rate (%) 27 | 3 35 29 21 51 5 1 87 18 Regions Visited 8 Branch Regions 1 Pre-discovered Areas . | . . . . . . . . . Known Exits Taken 2 | . . 1 . . . 1 . . Unknown Exits Taken 5 | 1 1 . 1 1 1 . . . Scrap Searched . | . . . . . . . . . Spaces Dug . | . . . . . . . . . Terrain Destroyed . | . . . . . . . . . Melee . | . . . . . . . . . Projectile . | . . . . . . . . . AOE . | . . . . . . . . . Terrain Rammed . | . . . . . . . . . Walls Destroyed . | . . . . . . . . . Machines Disabled . | . . . . . . . . . Actions | -11 -10 -9 -9 -8 -7 -6 -6 -5 --------- Run | Jun Mat Mat Min Mat Fac Fac DSF Fac Total 2377 | 92 259 579 57 407 125 14 182 662 Wait 517 | . 25 235 1 1 3 . 47 205 Move 1669 | 76 214 288 56 366 110 14 111 434 Hop 23 | . . . . 19 . . . 4 Pick Up 46 | 10 5 11 . 4 2 . 10 4 Fast Attach 3 | . . 1 . . 1 . 1 . Attach 31 | 6 1 5 . 6 1 . 10 2 Detach 5 | . . . . 4 . . . 1 Swap 12 | . 2 3 . . 4 . 2 1 Drop 16 | . . 6 . 2 4 . 1 3 Fire 53 | . 12 30 . 5 . . . 6 Melee . | . . . . . . . . . Ram 2 | . . . . . . . . 2 Kick . | . . . . . . . . . Crush . | . . . . . . . . . Escape Stasis . | . . . . . . . . . Rewire . | . . . . . . . . . Trap . | . . . . . . . . . Miscellaneous . | . . . . . . . . . Route ------- -11/Junkyard -10/Materials -9/Materials (discovered 2 exits: *Min x2) -9/Mines -8/Materials -7/Factory -6/Factory -6/DSF -5/Factory History --------- Turn | Location | Event 26 | -11/Junkyard | Discovered new exit (range 15) 83 | -11/Junkyard | Entered Materials 307 | -10/Materials | Build established: Mutant 338 | -10/Materials | Discovered new exit (range 10) 346 | -10/Materials | Entered another Materials area 346 | -9/Materials | Evolved 2 slots: Utility x2 870 | -9/Materials | Identified exit to Mines 949 | -9/Materials | Entered Mines 986 | -9/Mines | Met a Derelict bent on vengeance 994 | -9/Mines | Discovered new exit (range 7) 1001 | -9/Mines | Entered Materials 1001 | -8/Materials | Evolved 2 slots: Propulsion x2 1150 | -8/Materials | Discovered new exit (range 17) 1156 | -8/Materials | Entered Factory 1156 | -7/Factory | Evolved 2 slots: Utility x2 1217 | -7/Factory | Discovered new exit (range 9) 1224 | -7/Factory | Entered another Factory area 1224 | -6/Factory | Evolved 2 slots: Propulsion x2 1231 | -6/Factory | Identified exit to DSF 1232 | -6/Factory | Entered DSF 1250 | -6/DSF | Additional patrols routed to DSF 1297 | -6/DSF | Lost 5 parts (1p3n1u) 1347 | -6/DSF | Discovered new exit (range 22) 1352 | -6/DSF | Identified exit to Factory 1352 | -6/DSF | Entered Factory 1352 | -5/Factory | Evolved 2 slots: Power x1, Propulsion x1 1705 | -5/Factory | Lost 6 parts (1p3n2u) 1707 | -5/Factory | Core integrity fell below 50% 1718 | -5/Factory | Core integrity fell below 20% 1725 | -5/Factory | Destroyed by S-27 Virus with Autogun Last Messages --------------- 01662_ Imp. Sensor Array destroyed. 01662_ Imp. Deuterium Engine destroyed. 01663_ K-01 Serf suffers critical hit (Burn). 01663_ Slug penetrates K-01 Serf. 01663_ K-01 Serf destroyed. 01663_ K-01 Serf collects debris. 01664_ K-01 Serf cleans the Assembly Bed. 01670_ Xenon Bombardment Thruster destroyed. 01670_ K-01 Serf collects debris. 01672_ Penetrated by Slug. 01674_ C-35 Carver destroyed. 01674_ Imp. Flight Unit destroyed. 01689_ Xenon Bombardment Thruster severed. 01692_ Dropped Xenon Bombardment Thruster. 01693_ Dropped Sml. Storage Unit. 01710_ Imp. Trap Scanner destroyed. 01716_ Imp. Signal Interpreter severed. 01716_ S-27 Virus destroyed. 01722_ C-35 Carver destroyed. 01724_ Slammed into S-27 Virus. Map ----- +----------------------------------------------------+ | ???????????????????????????????? | | ???????????????????????????????? | | ???????????????????????????????? | | ???????????????????????????????? | | ???????????????????????????????? | | ???????????????????????????????? | | ???????????????????????????????? | | ???????????????????????????????? | | ???????????????????????????????? | | ???????????????????????????????? | | ???????????????????????????????? | | ???????????????????????????????? | | ???????##########???########### | | ???????# #???# #" | | ???????# #???# #" | | ???????# #???# """ """ #" | | ???????# #???# """ """ # | | ???????# #???# """ """ #" | | ######## ] #???? #" | | # #? #????? ?#" | | #"" #???= #?????? ??# | | #"" #????? #########;###### | | #""" ########+## ^ | | #""" #sss s | | #""" /ss % | | # #@%s s | | # ###/####/## | | # ## ????# ########## | | # ## ??# #????????? | | # ## # #????????? | | # ## # #????????? | | ######## """ # #????????? | | ???????# """"" # #????????? | | ???????# """"" # #????????? | | ???????########## #????????? | | ????????????????# #????????? | | ????????????????# #????????? | | ????????????????# #????????? | | ????????????????# #????????? | | ????????????????+ +????????? | | ????????????????# #????????? | | ????????????????# #????????? | | ????????????????# #????????? | | ????????????????# #????????? | | ????????????????? ?????????? | | ???????????????????????????????? | | ???????????????????????????????? | | ???????????????????????????????? | | ???????????????????????????????? | | ???????????????????????????????? | +----------------------------------------------------+ Best States ------------- Heat Dissipation 40 Energy Generation 16 Energy Capacity 290 Matter Stores 300 Matter Capacity 300 Sight Range 22 Robot Scan Range 15 Terrain Scan Range 14 Terrain Scan Density 10 Jamming Range 14 Armor Coverage 300 Evasion (%) 64 Kinecelleration 30 Item Schematics ----------------- None Robot Schematics ------------------ None Fabricated ------------ Nothing Alien Tech Used ----------------- None Achievements -------------- Can't Catch Me Challenges ------------ None Game ------ Seed DrainedBlastMediator Manual? 0 Play Time 00:42:16 Cumulative 10.9 hours Start 2024.02.09 @ 04:45:25 End 2024.02.09 @ 05:24:23 Sessions 1 Manual Loads 0 Difficulty Rogue Special Mode None Game No. 15 Rogue 15 Adventurer 0 Explorer 0 Win Type - Total 0 Types 0/0/0/0/0/0/0/0/0 Lore% 3 Gallery% 19 Achievement% 17 Wizard Run 0 Options --------- ASCII 1 Keyboard 0 Movement Numpad Keybinds 0 Fullscreen 2 Font 18/SmallcapsGlow Map View 76x50 Tactical HUD 1 Map Filters NONE Filters NONE Steam 1 RUN: 30711e6a-9c3a-48f1-af28-f01b388eec49